Cogmind - Beta 15 @@@ ROGUE MODE // 2025.10.10 @ 13:53:06 Player: microsand Result: Destroyed by Shrapnel Trap Performance ------------- Evolutions (0) 0 Regions Visited (2) 400 Robots Destroyed (19) 95 Value Destroyed (354) 354 Prototype IDs (0) 0 Alien Tech Used (0) 0 Bonus (0) 0 TOTAL SCORE: 849 Bonus ------- None Cogmind --------- Core Integrity 0/250 Matter 286/300 Energy 100/100 System Corruption 1% Temperature Cool (4) Movement Flying (37) Location -10/Subcaves Parts ------- > --- POWER (1) -------- (None) > --- PROPULSION (2) --- Flight Unit Flight Unit > --- UTILITY (2) ------ (None) > --- WEAPON (2) ------- Mining Laser > --- INVENTORY (5) ---- Seismic Detector Tractor Beam Peak State ------------ > --- POWER ------------ Light Ion Engine > --- PROPULSION ------- Light Treads Light Treads > --- UTILITY ---------- Small Storage Unit Seismic Detector > --- WEAPON ----------- Assault Rifle Assault Rifle > --- INVENTORY -------- Light Ion Engine Light Nuclear Core Flight Unit Flight Unit Seismic Detector Tractor Beam Medium Laser Mining Laser [Rating: 8] Favorites ----------- Power Light Ion Engine Engine Light Ion Engine Power Core Light Nuclear Core Propulsion Light Treads Treads Light Treads Flight Unit Flight Unit Utility Small Storage Unit Device Seismic Detector Storage Small Storage Unit Weapon Assault Rifle Energy Gun Medium Laser Ballistic Gun Assault Rifle Special Weapon Mining Laser Build | -11 -10 -10 ------- Run | Yrd Mat Sub Slots Evolved . | . . . Power . | . . . Propulsion . | . . . Utility . | . . . Weapon . | . . . Parts Attached 12 | 7 1 4 Power 2 | 1 . 1 Engine 1 | 1 . . Core 1 | . . 1 Reactor . | . . . Propulsion 4 | 2 . 2 Treads 2 | 2 . . Leg . | . . . Wheel . | . . . Hover . | . . . Flight 2 | . . 2 Utility 2 | 2 . . Device 1 | 1 . . Storage 1 | 1 . . Processor . | . . . Hackware . | . . . Protection . | . . . Artifact . | . . . Weapon 4 | 2 1 1 Energy Gun 1 | . . 1 Energy Cannon . | . . . Ballistic Gun 2 | 2 . . Ballistic Cannon . | . . . Launcher . | . . . Special Weapon 1 | . 1 . Impact Weapon . | . . . Slashing Weapon . | . . . Piercing Weapon . | . . . Special Melee Weapon . | . . . Unidentified Prototypes . | . . . Parts Lost 8 | . . 8 Power 2 | . . 2 Propulsion 2 | . . 2 Utility 1 | . . 1 Weapon 3 | . . 3 Highest Loss Streak 7 | . . 7 To Critical Strikes . | . . . Average Backups 6 | 3 6 6 Power 1 | . 1 1 Propulsion 1 | 1 1 1 Utility 1 | . 1 2 Weapon 1 | . 2 1 Tool/Special . | . . . Unused Backups 6 | 1 2 3 Power 1 | . . 1 Propulsion 2 | . 2 . Utility 3 | 1 . 2 Weapon . | . . . Tool/Special . | . . . Average Slot Usage (%) 94 | . 99 76 Engine 13 | . 14 10 Treads 25 | . 28 17 Flight 1 | . . 5 Device 13 | . 14 9 Storage 13 | . 14 11 Ballistic Gun 24 | . 27 13 Special Weapon 1 | . . 2 Peak Build Rating 8 | 7 8 8 Average Rating 6 | 5 7 6 On Entrance 5 | . 7 8 Naked Turns . | . . . Heaviest Build 13 | 13 13 13 Greatest Support 40 | 40 40 40 Greatest Overweight (x) 3 | . . 3 Average Overweight (x) . | . . . Largest Inventory Capacity 8 | 8 8 8 Average Capacity 7 | 7 8 7 Most Carried 8 | 6 8 8 Average Carried 6 | 3 6 6 Final Capacity 8 | 8 8 5 Final Carried 8 | 6 8 2 Class Distribution -------------------- 96% | Mutant 3% | Scavenger-Mutant Dominant Class ---------------- Mutant | -10/Materials Mutant | -10/Subcaves Resources | -11 -10 -10 ----------- Run | Yrd Mat Sub Matter Collected 599 | 306 272 21 Remotely . | . . . Salvage Created 765 | 120 645 . Parts 43 | 9 34 . Haulers Intercepted . | . . . Recyclers Shooed 4 | . 4 . Parts Field Recycled . | . . . Retrieved Matter . | . . . Parts Self-Destructed 3 | . . 3 Prevented . | . . . Kills | -11 -10 -10 ------- Run | Yrd Mat Sub Combat Hostiles Destroyed 10 | . 10 . Guns 10 | . 10 . Classes Destroyed 7 | 2 5 . Worker 1 | . 1 . Builder 1 | . 1 . Tunneler 2 | 2 . . Recycler 4 | 1 3 . Watcher 1 | . 1 . Swarmer 3 | . 3 . Grunt 7 | . 7 . Best Kill Streak 4 | 2 4 . Combat Bots Only 4 | . 4 . Max Kills in Single Turn 1 | 1 1 . Gunslinging . | . . . Exploded . | . . . Melee . | . . . Uniques/NPCs Destroyed . | . . . Combat | -11 -10 -10 -------- Run | Yrd Mat Sub Hostile Shots Fired 88 | . 48 40 Missed 22 | . 11 11 Hits 66 | . 37 29 Projectile 66 | . 37 29 Critical Strikes 2 | . 1 1 Damage Taken 1080 | . 406 674 Core 288 | . 45 243 Absorbed by Shields . | . . . Core Remaining (%) 100 | 100 . . Volleys Fired 79 | 6 43 30 Largest 2 | 2 2 2 Hottest 100 | 40 100 100 Shots Fired 130 | 12 85 33 Gun 125 | 12 84 29 Cannon . | . . . Launcher . | . . . Special 5 | . 1 4 Kinetic 99 | 12 84 3 Thermal 31 | . 1 30 Explosive . | . . . Electromagnetic . | . . . Robot Hit Streak 20 | 4 10 20 Robot Miss Streak 3 | 1 3 3 Penetration Max . | . . . Secondary Targets . | . . . Shots Hit Robots 80 | 8 48 24 Core Hits 31 | 3 28 . Critical Kills . | . . . Critical Parts Destroyed 1 | 1 . . Critical Strikes 1 | 1 . . Destroy 1 | 1 . . Melee Attacks . | . . . Impact . | . . . Slashing . | . . . Piercing . | . . . Sneak Attacks . | . . . Combat Hostiles . | . . . Follow-up Attacks . | . . . Damage Inflicted 802 | 98 666 38 Guns 802 | 98 666 38 Cannons . | . . . Explosions . | . . . Melee . | . . . Ramming . | . . . Kinetic 764 | 98 666 . Thermal 38 | . . 38 Explosive . | . . . Electromagnetic . | . . . Impact . | . . . Slashing . | . . . Piercing . | . . . Highest Corruption 1 | . 1 1 Average Corruption 1 | . 1 1 Corruption Purged . | . . . Corruption Blocked . | . . . Effects 5 | . 4 1 Message Errors 2 | . 2 . Matter Fused 1 | . . 1 Energy Discharges 1 | . 1 . Alerts 1 | . 1 . Overload Shots . | . . . Overflow Damage . | . . . Projectiles . | . . . Explosions . | . . . Melee . | . . . Knockbacks . | . . . Impact . | . . . Kinetic . | . . . Secondary . | . . . Self-Inflicted Damage . | . . . Shots . | . . . Rammed . | . . . Targets Rammed . | . . . Kicked . | . . . Crushed . | . . . Highest Temperature 20 | . 20 . Average Temperature 8 | . 8 . Received Heat Transfer 183 | . 183 . Siege Activations . | . . . Martial Activations . | . . . Shielding Activations . | . . . Robots Disrupted . | . . . Combat Hostiles . | . . . Robots Corrupted . | . . . Combat Hostiles . | . . . Parts Fried . | . . . Impact Corruptions . | . . . Robots Melted . | . . . Combat Hostiles . | . . . Parts Melted . | . . . Heat Transferred 111 | . . 111 Parts Sabotaged . | . . . Parts Stolen . | . . . Parts Stripped . | . . . Power Chain Reactions . | . . . Alert | -11 -10 -10 ------- Run | Yrd Mat Sub Maximum Alert Level . | . . . Low Security (%) 100 | 100 100 . Level 1 . | . . . Level 2 . | . . . Level 3 . | . . . Level 4 . | . . . Level 5 . | . . . High Security . | . . . Max Security . | . . . Peak Influence 166 | 5 166 . Initial . | . . . Average 46 | . 61 . Influence Increases 317 | 15 302 . Destroy 0b10 Robot/C 200 | . 200 . Destroy 0b10 Robot/NC 45 | 15 30 . Destroy Leader 52 | . 52 . Successful Hack 16 | . 16 . Destroy Structure 4 | . 4 . Influence Decreases 317 | 15 210 92 Entered New Map 45 | . . 45 Time Decay 260 | 15 205 40 Lost Part 7 | . . 7 Purge Threat 5 | . 5 . Squads Dispatched 2 | . 2 . Investigation 1 | . 1 . Extermination . | . . . Reinforcement 1 | . 1 . Assault . | . . . Garrison . | . . . Intercept . | . . . Searches Triggered . | . . . Construction Impeded . | . . . Haulers Reinforced . | . . . Active Scanning Responses . | . . . Cargo Convoy Interrupts . | . . . Stealth | -11 -10 -10 --------- Run | Yrd Mat Sub Distress Signals . | . . . Communications Jammed . | . . . Distress Signals . | . . . Times Spotted 14 | . 12 2 Peak Tracking Total 3 | . 3 3 Tactical Retreats . | . . . Traps | -11 -10 -10 ------- Run | Yrd Mat Sub Traps Triggered 1 | . . 1 Indirectly . | . . . Trap Hack Attempts . | . . . Triggered . | . . . Disarmed . | . . . Reprogrammed . | . . . Reused . | . . . Traps Extracted . | . . . Installed . | . . . Triggered . | . . . Machines | -11 -10 -10 ---------- Run | Yrd Mat Sub Machines Disabled . | . . . Max in Single Turn . | . . . Machines Repaired . | . . . Machines Dismantled . | . . . Machines Sabotaged . | . . . Overloaded Fab Kills . | . . . Hacking | -11 -10 -10 --------- Run | Yrd Mat Sub Machines Accessed 5 | . 5 . Terminals 5 | . 5 . Fabricators . | . . . Repair Stations . | . . . Recycling Units . | . . . Scanalyzers . | . . . Garrison Access . | . . . Total Hacks 17 | . 17 . Successful 4 | . 4 . Failed 13 | . 13 . Catastrophic 4 | . 4 . Database Lockouts . | . . . Manual 17 | . 17 . Terminals 17 | . 17 . Fabricators . | . . . Repair Stations . | . . . Recycling Units . | . . . Scanalyzers . | . . . Garrison Access . | . . . Terminal Hacks 3 | . 3 . Part Schematic 1 | . 1 . Terminal Index 1 | . 1 . Unreport Threat 1 | . 1 . Fabricator Hacks . | . . . Repair Station Hacks . | . . . Recycling Unit Hacks . | . . . Scanalyzer . | . . . Garrison Access Hacks . | . . . Unauthorized Hacks 1 | . 1 . Terminals 1 | . 1 . Botnet 1 | . 1 . Fabricators . | . . . Repair Stations . | . . . Recycling Units . | . . . Scanalyzers . | . . . Garrison Access . | . . . Data Cores Recovered . | . . . Used . | . . . Hacking Detections 4 | . 4 . Full Trace Events 3 | . 3 . Feedback Events 1 | . 1 . Corruption 1 | . 1 . Feedback Blocked . | . . . Robot Schematics Acquired . | . . . Robots Built . | . . . Authchips . | . . . Time . | . . . Total Robot Build Rating . | . . . Part Schematics Acquired 1 | . 1 . Parts Built . | . . . Authchips . | . . . Time . | . . . Total Part Build Rating . | . . . Parts Repaired . | . . . Time . | . . . Parts Recycled . | . . . Recycled Matter . | . . . Retrieved Matter . | . . . Retrieved Components . | . . . Parts Scanalyzed . | . . . Part Schematics Acquired . | . . . Parts Damaged . | . . . Bothacking | -11 -10 -10 ------------ Run | Yrd Mat Sub Used RIF Installer . | . . . Robots Hacked . | . . . Non-combat . | . . . Combat . | . . . Robot Hacks Applied . | . . . Relay Couplers Released . | . . . Fabnet Peak Effective % . | . . . Robots Rewired . | . . . Allies Hacked . | . . . Hacks Repelled . | . . . Allies | -11 -10 -10 -------- Run | Yrd Mat Sub Total Allies . | . . . Largest Group . | . . . Highest-Rated Group . | . . . Highest-Rated Ally . | . . . Total Orders . | . . . Ally Attacks . | . . . Total Damage . | . . . Kills . | . . . Allies Corrupted . | . . . Allies Melted . | . . . Intel | -11 -10 -10 ------- Run | Yrd Mat Sub Active Infowar (turns) 1111 | 147 823 141 Seismic 1111 | 147 823 141 Robot Analysis Total . | . . . Derelict Logs Recovered . | . . . Drone Launches . | . . . Drone Recoveries . | . . . Exploration | -11 -10 -10 ------------- Run | Yrd Mat Sub Turns Passed 1279 | 254 823 202 Spaces Moved 611 | 143 367 101 Core 33 | 18 . 15 Treads 534 | 125 367 42 Legs . | . . . Wheels . | . . . Hover . | . . . Flight 44 | . . 44 Fastest Speed 37 | 50 160 37 Average Speed 146 | 146 160 100 Slowest Speed 200 | 160 160 200 Overloaded Moves . | . . . Propulsion Burnouts . | . . . Robots Hopped . | . . . Potential Cave-ins . | . . . Cave-ins Triggered . | . . . Exploration Rate (%) 20 | 5 48 7 Regions Visited 2 Branch Regions 1 Pre-discovered Areas . | . . . Known Exits Taken . | . . . Unknown Exits Taken 2 | 1 1 . Scrap Searched . | . . . Spaces Dug 1 | . 1 . Terrain Destroyed 1 | . 1 . Melee . | . . . Projectile 1 | . 1 . AOE . | . . . Terrain Rammed . | . . . Walls Destroyed . | . . . Machines Disabled . | . . . Actions | -11 -10 -10 --------- Run | Yrd Mat Sub Total 856 | 178 517 161 Wait 124 | 2 99 23 Move 609 | 142 366 101 Hop . | . . . Pick Up 22 | 17 4 1 Fast Attach . | . . . Attach 13 | 7 1 5 Detach 1 | . 1 . Swap 1 | . 1 . Drop 7 | 4 2 1 Fire 79 | 6 43 30 Melee . | . . . Ram . | . . . Kick . | . . . Crush . | . . . Escape Stasis . | . . . Rewire . | . . . Trap . | . . . Miscellaneous . | . . . Route ------- -11/Scrapyard -10/Materials -10/Subcaves History --------- Turn | Location | Event 6 | -11/Scrapyard | Discovered new exit (range 15) 255 | -11/Scrapyard | Entered Materials 313 | -10/Materials | Build established: Mutant 1072 | -10/Materials | Discovered new exit (range 4) 1078 | -10/Materials | Entered Subcaves 1079 | -10/Subcaves | Approached by a straggling Scientist 1203 | -10/Subcaves | Core integrity fell below 50% 1235 | -10/Subcaves | Core integrity fell below 20% 1258 | -10/Subcaves | Lost 7 parts (1p2n1u3w) 1280 | -10/Subcaves | Destroyed by Shrapnel Trap Last Messages --------------- here" 01161_ Assault Rifle destroyed. 01178_ B2-7CW(O) collects matter. U8-RYC(c): "I think it's somewhere northeast of here" 01187_ B2-7CW(O) puts together Sub. Beam Cannon. 01198_ Lgt. Treads destroyed. 01219_ Seismic Detector destroyed. 01225_ Lgt. Ion Engine destroyed. 01227_ Med. Laser destroyed. U8-RYC(c): "I think it's somewhere northeast of here" 01240_ Dropped Sml. Storage Unit. 01244_ Acquired Mining Laser. 01266_ Acquired 11 matter. 01268_ Acquired 10 matter. 01280_ Triggered Shrapnel Trap. 01280_ An expanding cloud of shrapnel blasts out in all directions. 01280_ Lgt. Nuclear Core destroyed. Map ----- +----------------------------------------------------+ | ?????????????????????????????????????????????????? | | ?????????????????????????????????????????????????? | | ?????????????????????????????????????????????????? | | ?????????????????????????????????????????????????? | | ?????????????????????????????????????????????????? | | ?????????????????????????????????????????????????? | | ?????????????????????????????????????????????????? | | ?????????????????????????????????????????????????? | | ?????????????????????????????????????????????????? | | ?????????????????????????????????????????????????? | | ?????????????????????????????????????????????????? | | ?????????????????????????????????????????????????? | | ?????????????????????????????????????????????????? | | ?????????????????????????????????????????????????? | | ?????????????????????????????????????????????????? | | ?????????????????????????????????????????????????? | | ?????????????????????????????????????????????????? | | ?????????????#???????????????????????????????????? | | ???????????? ?????????????????????????????????? | | ????????????? #####???????????????????????????? | | ?????????????? # ???????????????????????????? | | ?????? ???????? ??????????????????????????? | | ????? ## ????? ??????????????????????????? | | ?????? ????? ## ###?###???????????????????? | | ??????? #????# # ### ##??????????????????? | | ???????#% #???? #?# @ ##?????????????????? | | ???????# ?### ## ^ ##????????????????? | | ????????# #?# ?????# ###??????????????? | | ?????????#"#### ?????## ^ ##?????????????? | | ????######""## ####### ^#?????????????? | | ???## """" ## # ## ##?????????????? | | ???#"" "" "" ###??????????????? | | ???#"" " """" # ## ####????????????????? | | ???### ###### #########^ #???????????????????? | | ?#####" ##????##% ??????### #???????????????????? | | ## " ##????## #???????###???????????????????? | | #*!# # " ##?????###?????????????????????????????? | | # ##" ##" #?????????????????????????????????????? | | # #" $"# #?????????????????????????????????????? | | # #" $"# #?????????????????????????????????????? | | # ##""## ##?????????????????????????????????????? | | # #### #??????????????????????????????????????? | | ## # #?????????????????????????????????????? | | ?# #######?????????????????????????????????????? | | ?# ##??????????????????????????????????????????? | | ?# #??????????????????????????????????????????? | | ?# ###??###?????????????????????????????????????? | | ## #???##%##????????????????????????????????????? | | # #####% #????????????????????????????????????? | | ##???????????????????????????????????? | +----------------------------------------------------+ Best States ------------- Heat Dissipation 25 Energy Generation 14 Energy Capacity 160 Matter Stores 300 Matter Capacity 300 Sight Range 16 Terrain Scan Density 10 Evasion (%) 62 Recoil Reduction 2 Item Schematics ----------------- Signal Interpreter | -10/Materials | Hacked Robot Schematics ------------------ None Fabricated ------------ Nothing Repaired ---------- Nothing Alien Tech Used ----------------- None Achievements -------------- None Challenges ------------ None Game ------ Seed MicrowarpSupersonicLaser Manual? 0 Play Time 00:11:58 Cumulative 13.8 hours Start 2025.10.10 @ 13:34:24 End 2025.10.10 @ 13:53:06 Sessions 1 Manual Loads 0 Difficulty Rogue Special Mode None Game No. 42 Rogue 42 Adventurer 0 Explorer 0 Win Type - Total 0 Types 0/0/0/0/0/0/0/0/0/0 Lore% 23 Gallery% 19 Achievement% 21 Wizard Run 0 Options --------- Layout 1 ASCII 0 Keyboard 0 Movement Numpad Keybinds 0 Fullscreen 1 Font 24/Smallcaps Map View 50x35 Zoom Use 0% Tactical HUD 1 Map Filters NONE Filters NONE Steam 1 RUN: be1cc367-822b-4590-a795-9b97524a84ce